fUSD/lending_fUSD_20251201
["ID","MTS","AMOUNT","RATE_DAILY","PERIOD"]
[395230525,1764556252724,-151.0,0.000169,2]
[395230526,1764556252733,-151.0,0.000169,2]
[395230527,1764556252743,-151.0,0.000169,2]
[395230528,1764556252752,-151.0,0.000169,2]
[395230529,1764556252761,-254.469934,0.000169,2]
[395230530,1764556252770,-152.047785,0.000169,2]
[395230531,1764556252779,-254.469934,0.000169,2]
[395230532,1764556252788,-151.0,0.000169,2]
[395230533,1764556252797,-254.469934,0.000169,2]
[395230534,1764556252806,-254.469934,0.000169,2]
[395230535,1764556252815,-297.205808,0.000169,2]
[395230536,1764556252824,-151.0,0.000169,2]
[395230537,1764556252835,-151.0,0.000169,2]
[395230538,1764556252845,-152.44390529,0.00016901,2]
[395230539,1764556252978,-214.27357495,0.00016901,2]
[395230540,1764556252992,-150.0,0.00016904,2]
[395230541,1764556253001,-150.0,0.00016905,2]
[395230542,1764556253011,-150.0,0.00016915,2]
[395230543,1764556253021,-152.44390529,0.00016918,2]
[395230544,1764556253031,-214.27357495,0.00016918,2]
[395230545,1764556253041,-150.0,0.00016921,2]
[395230546,1764556253050,-150.0,0.00016925,2]
[395230547,1764556253060,-150.0,0.00016926,2]
[395230548,1764556253069,-150.0,0.00016932,2]
[395230549,1764556253079,-150.0,0.00016932,2]
[395230550,1764556253089,-152.44390529,0.00016935,2]
[395230551,1764556253099,-214.27357495,0.00016935,2]
[395230552,1764556253108,-150.0,0.00016938,2]
[395230553,1764556253119,-152.44390529,0.00016952,2]
[395230554,1764556253131,-214.27357495,0.00016952,2]
[395230555,1764556253141,-150.0,0.00016954,2]
[395230556,1764556253151,-150.0,0.00016955,2]
[395230557,1764556253161,-150.0,0.00016959,2]
[395230558,1764556253171,-150.0,0.00016962,2]
[395230559,1764556253180,-152.44390529,0.00016969,2]
[395230560,1764556253191,-214.27357495,0.00016969,2]
[395230561,1764556253200,-331.93282423,0.00016972,2]
[395230562,1764556253213,-191.85688305,0.00016973,2]
[395230563,1764556253223,-586.42715679,0.00016973,2]
[395230564,1764556253232,-388.21665271,0.00016973,2]
[395230565,1764556253241,-500.0,0.00016973,2]
[395230566,1764556253251,-206.01551169,0.00016973,2]
[395230567,1764556253261,-500.70186377,0.00016973,2]
[395230568,1764556253270,-500.0,0.00016973,2]
[395230569,1764556253280,-500.0,0.00016973,2]
[395230570,1764556253290,-500.0,0.00016973,2]
[395230571,1764556253299,-503.91137404,0.00016973,2]
[395230572,1764556253310,-332.16239915,0.00016973,2]
[395230573,1764556253320,-505.70856743,0.00016973,2]
[395230574,1764556253330,-500.0,0.00016973,2]
[395230575,1764556253340,-500.0,0.00016973,2]
[395230576,1764556253350,-500.0,0.00016973,2]
[395230577,1764556253359,-500.62734798,0.00016973,2]
[395230578,1764556253369,-500.45943647,0.00016973,2]
[395230579,1764556253379,-500.0,0.00016973,2]
[395230580,1764556253389,-500.0,0.00016973,2]
[395230581,1764556253400,-500.0,0.00016973,2]
[395230582,1764556253410,-499.90161086,0.00016973,2]
[395230583,1764556253420,-500.0,0.00016973,2]
[395230584,1764556253430,-500.0,0.00016973,2]
[395230585,1764556253439,-500.0,0.00016973,2]
[395230586,1764556253449,-500.0,0.00016973,2]
[395230587,1764556253459,-506.27683139,0.00016973,2]
[395230588,1764556253469,-500.0,0.00016973,2]
[395230589,1764556253478,-500.0,0.00016973,2]
[395230590,1764556253488,-356.06806903,0.00016973,2]
[395230591,1764556253497,-453.79493009,0.00016973,2]
[395230592,1764556253507,-500.0,0.00016973,2]
[395230593,1764556253517,-500.0,0.00016973,2]
[395230594,1764556253526,-500.0,0.00016973,2]
[395230595,1764556253536,-500.0,0.00016973,2]
[395230596,1764556253546,-409.96658599,0.00016973,2]
[395230597,1764556253557,-217.00327303,0.00016973,2]
[395230598,1764556253566,-500.0,0.00016973,2]
[395230599,1764556253576,-504.52598037,0.00016973,2]
[395230600,1764556253586,-494.55213464,0.00016973,2]
[395230601,1764556253596,-500.0,0.00016973,2]
[395230602,1764556253605,-500.0,0.00016973,2]
[395230603,1764556253615,-500.0,0.00016973,2]
[395230604,1764556253624,-500.0,0.00016973,2]
[395230605,1764556253634,-150.0,0.00016973,2]
[395230606,1764556253643,-150.0,0.00016973,2]
[395230607,1764556253653,-154.00524226,0.00016973,2]
[395230608,1764556253662,-150.0,0.00016973,2]
[395230609,1764556253672,-150.0,0.00016973,2]
[395230610,1764556253681,-285.21599958,0.00016973,2]
[395230611,1764556253691,-150.0,0.00016973,2]
[395230612,1764556253701,-150.0,0.00016973,2]
[395230613,1764556253711,-500.0,0.00016973,2]
[395230614,1764556253721,-500.0,0.00016973,2]
[395230615,1764556253731,-252.13762435,0.00016973,2]
[395230616,1764556253741,-150.49169858,0.00016973,2]
[395230617,1764556253752,-150.0,0.00016973,2]
[395230618,1764556253762,-500.0,0.00016973,2]
[395230619,1764556253772,-1947.0,0.00016973,2]
[395230620,1764556253782,-150.0,0.00016973,2]
[395230621,1764556253792,-421.0,0.00016973,2]
[395230622,1764556253801,-500.0,0.00016973,2]
[395230623,1764556253812,-150.0,0.00016973,2]
[395230624,1764556253822,-500.0,0.00016973,2]
[395230625,1764556253832,-1180.0,0.00016973,2]
[395230626,1764556253841,-500.0,0.00016973,2]
[395230627,1764556253851,-500.0,0.00016973,2]
[395230628,1764556253860,-150.0,0.00016973,2]
[395230629,1764556253870,-150.0,0.00016973,2]
[395230630,1764556253880,-150.0,0.00016973,2]
[395230631,1764556253889,-150.0,0.00016973,2]
[395230632,1764556253899,-150.0,0.00016973,2]
[395230633,1764556253909,-500.0,0.00016973,2]
[395230634,1764556253919,-150.0,0.00016973,2]
[395230635,1764556253928,-150.0,0.00016973,2]
[395230636,1764556253938,-150.0,0.00016973,2]
[395230637,1764556253948,-458.0,0.00016973,2]
[395230638,1764556253958,-434.0,0.00016973,2]
[395230639,1764556253967,-1737.69823801,0.00016977,2]
[395230640,1764556253976,-150.0,0.00016986,2]
[395230641,1764556253986,-152.44390529,0.00016986,2]
[395230642,1764556253995,-150.0,0.00016986,2]
[395230643,1764556254005,-214.27357495,0.00016986,2]
[395230644,1764556254015,-150.0,0.00016986,2]
[395230645,1764556254025,-150.0,0.00016986,2]
[395230646,1764556254035,-150.0,0.00016986,2]
[395230647,1764556254044,-150.0,0.00016986,2]
[395230648,1764556254053,-150.00000001,0.00016986,2]
[395230649,1764556254062,-150.0,0.00016986,2]
[395230650,1764556254071,-150.0,0.00016986,2]
[395230651,1764556254080,-200.0,0.00016986,2]
[395230652,1764556254091,-150.0,0.00016986,2]
[395230653,1764556254100,-150.0,0.00016986,2]
[395230654,1764556254109,-150.0,0.00016986,2]
[395230655,1764556254119,-600.0,0.00016986,2]
[395230656,1764556254131,-500.0,0.00016989,2]
[395230657,1764556254140,-190.11352701,0.00016989,2]
[395230658,1764556254150,-500.0,0.00016989,2]
[395230659,1764556254159,-500.0,0.00016989,2]
[395230660,1764556254169,-529.10702675,0.00016989,2]
[395230661,1764556254179,-502.35658979,0.00016989,2]
[395230662,1764556254189,-500.0,0.00016989,2]
[395230663,1764556254198,-500.0,0.00016989,2]
[395230664,1764556254209,-639.66251844,0.00016989,2]
[395230665,1764556254218,-500.0,0.00016989,2]
[395230666,1764556254228,-500.0,0.00016989,2]
[395230667,1764556254238,-500.0,0.00016989,2]
[395230668,1764556254247,-1653.75860408,0.0001699,2]
[395230669,1764556254256,-1000.0,0.00016991,2]
[395230670,1764556254266,-151.0,0.00016994,2]
[395230671,1764556254276,-5386.6558703,0.00016997,2]
[395230672,1764556254285,-5974.4605653,0.00016997,2]
[395230673,1764556254295,-2028.9814349,0.00016997,2]
[395230674,1764556254304,-86406.1852676,0.00016997,2]
[395230675,1764556254314,-100931.5517632,0.00016997,2]
[395230676,1764556254324,-151.0,0.00016997,2]
[395230677,1764556254333,-151.0,0.00016997,2]
[395230678,1764556254343,-151.0,0.00016997,2]
[395230679,1764556254352,-192.812082,0.00016997,2]
[395230680,1764556254362,-151.0,0.00016997,2]
[395230681,1764556254372,-376.767885,0.00016997,2]
[395230682,1764556254382,-376.767885,0.00016997,2]
[395230683,1764556254392,-192.812082,0.00016997,2]
[395230684,1764556254402,-376.767885,0.00016997,2]
[395230685,1764556254412,-376.767885,0.00016997,2]
[395230686,1764556254421,-192.812082,0.00016997,2]
[395230687,1764556254431,-69049.5307182,0.00016997,2]
[395230688,1764556254440,-192.812082,0.00016997,2]
[395230689,1764556254450,-151.0,0.00016997,2]
[395230690,1764556254460,-151.0,0.00016997,2]
[395230691,1764556254470,-151.0,0.00016997,2]
[395230692,1764556254479,-151.0,0.00016997,2]
[395230693,1764556254489,-151.0,0.00016997,2]
[395230694,1764556254499,-151.0,0.00016997,2]
[395230695,1764556254509,-151.0,0.00016997,2]
[395230696,1764556254519,-1478.3764925,0.00016997,2]
[395230697,1764556254528,-151.0,0.00016997,2]
[395230698,1764556254538,-160.56252,0.00016997,2]
[395230699,1764556254547,-276.282517,0.00016997,2]
[395230700,1764556254557,-8219.2290898,0.00016997,2]
[395230701,1764556254567,-151.0,0.00016997,2]
[395230702,1764556254577,-151.0,0.00016997,2]
[395230703,1764556254587,-450.225759,0.00016997,2]
[395230704,1764556254597,-450.225759,0.00016997,2]
[395230705,1764556254606,-450.225759,0.00016997,2]
[395230706,1764556254616,-450.225759,0.00016997,2]
[395230707,1764556254626,-151.0,0.00016997,2]
[395230708,1764556254636,-151.0,0.00016997,2]
[395230709,1764556254645,-151.0,0.00016997,2]
[395230710,1764556254654,-153.344328,0.00016997,2]
[395230711,1764556254663,-151.0,0.00016997,2]
[395230712,1764556254673,-213.118839,0.00016997,2]
[395230713,1764556254682,-151.0,0.00016997,2]
[395230714,1764556254691,-151.0,0.00016997,2]
[395230715,1764556254701,-151.0,0.00016997,2]
[395230716,1764556254710,-151.0,0.00016997,2]
[395230717,1764556254719,-151.0,0.00016997,2]
[395230718,1764556254729,-183.379414,0.00016997,2]
[395230719,1764556254739,-74314.8263067,0.00016997,2]
[395230720,1764556254748,-151.0,0.00016997,2]
[395230721,1764556254757,-207.501865,0.00016997,2]
[395230722,1764556254766,-166.972036,0.00016997,2]
[395230723,1764556254775,-151.0,0.00016997,2]
[395230724,1764556254785,-151.0,0.00016997,2]
[395230725,1764556254794,-151.0,0.00016997,2]
[395230726,1764556254803,-151.0,0.00016997,2]
[395230727,1764556254812,-151.0,0.00016997,2]
[395230728,1764556254822,-156.769308,0.00016997,2]
[395230729,1764556254831,-151.0,0.00016997,2]
[395230730,1764556254841,-151.0,0.00016997,2]
[395230731,1764556254850,-151.0,0.00016997,2]
[395230732,1764556254859,-156.310362,0.00016997,2]
[395230733,1764556254868,-153.414729,0.00016997,2]
[395230734,1764556254878,-151.0,0.00016997,2]
[395230735,1764556254887,-151.0,0.00016997,2]
[395230736,1764556254897,-151.0,0.00016997,2]
[395230737,1764556254907,-151.0,0.00016997,2]
[395230738,1764556254917,-151.0,0.00016997,2]
[395230739,1764556254926,-151.0,0.00016997,2]
[395230740,1764556254936,-151.0,0.00016997,2]
[395230741,1764556254945,-528.720884,0.00016997,2]
[395230742,1764556254955,-151.0,0.00016997,2]
[395230743,1764556254964,-528.720884,0.00016997,2]
[395230744,1764556254974,-528.720884,0.00016997,2]
[395230745,1764556254983,-8708.1460071,0.00016997,2]
[395230746,1764556254993,-528.720884,0.00016997,2]
[395230747,1764556255002,-151.0,0.00016997,2]
[395230748,1764556255012,-151.0,0.00016997,2]
[395230749,1764556255022,-151.0,0.00016997,2]
[395230750,1764556255031,-151.0,0.00016997,2]
[395230751,1764556255041,-151.0,0.00016997,2]
[395230752,1764556255050,-361.657778,0.00016997,2]
[395230753,1764556255060,-151.0,0.00016997,2]
[395230754,1764556255069,-361.657778,0.00016997,2]
[395230755,1764556255362,-151.0,0.00016997,2]
[395230756,1764556255426,-361.657778,0.00016997,2]
[395230757,1764556255435,-225.335346,0.00016997,2]
[395230758,1764556255445,-361.657778,0.00016997,2]
[395230759,1764556255455,-151.0,0.00016997,2]
[395230760,1764556255464,-225.335346,0.00016997,2]
[395230761,1764556255474,-151.0,0.00016997,2]
[395230762,1764556255483,-225.335346,0.00016997,2]
[395230763,1764556255492,-156.030534,0.00016997,2]
[395230764,1764556255503,-151.0,0.00016997,2]
[395230765,1764556255512,-151.0,0.00016997,2]
[395230766,1764556255522,-151.0,0.00016997,2]
[395230767,1764556255532,-225.335346,0.00016997,2]
[395230768,1764556255541,-151.0,0.00016997,2]
[395230769,1764556255550,-243.522026,0.00016997,2]
[395230770,1764556255561,-151.0,0.00016997,2]
[395230771,1764556255571,-727.545878,0.00016997,2]
[395230772,1764556255580,-177.866869,0.00016997,2]
[395230773,1764556255590,-727.545878,0.00016997,2]
[395230774,1764556255600,-727.545878,0.00016997,2]
[395230775,1764556255609,-727.545878,0.00016997,2]
[395230776,1764556255620,-421.34453,0.00016997,2]
[395230777,1764556255632,-421.34453,0.00016997,2]
[395230778,1764556255642,-421.34453,0.00016997,2]
[395230779,1764556255651,-421.34453,0.00016997,2]
[395230780,1764556255661,-283.077764,0.00016997,2]
[395230781,1764556255671,-151.0,0.00016997,2]
[395230782,1764556255680,-1916.265192,0.00016997,2]
[395230783,1764556255690,-151.0,0.00016997,2]
[395230784,1764556255699,-161.069255,0.00016997,2]
[395230785,1764556255710,-151.0,0.00016997,2]
[395230786,1764556255719,-1916.265192,0.00016997,2]
[395230787,1764556255729,-151.0,0.00016997,2]
[395230788,1764556255738,-151.0,0.00016997,2]
[395230789,1764556255747,-1916.265192,0.00016997,2]
[395230790,1764556255757,-151.0,0.00016997,2]
[395230791,1764556255766,-151.0,0.00016997,2]
[395230792,1764556255775,-1916.265192,0.00016997,2]
[395230793,1764556255785,-151.0,0.00016997,2]
[395230794,1764556255794,-185.071301,0.00016997,2]
[395230795,1764556255803,-151.0,0.00016997,2]
[395230796,1764556255813,-151.0,0.00016997,2]
[395230797,1764556255823,-2403.289053,0.00016997,2]
[395230798,1764556255832,-2403.289053,0.00016997,2]
[395230799,1764556255841,-153.691112,0.00016997,2]
[395230800,1764556255850,-222.990006,0.00016997,2]
[395230801,1764556255860,-2403.289053,0.00016997,2]
[395230802,1764556255869,-222.990006,0.00016997,2]
[395230803,1764556255878,-2403.289053,0.00016997,2]
[395230804,1764556255888,-222.990006,0.00016997,2]
[395230805,1764556255898,-222.990006,0.00016997,2]
[395230806,1764556255907,-161.26213,0.00016997,2]
[395230807,1764556255917,-151.0,0.00016997,2]
[395230808,1764556255926,-151.0,0.00016997,2]
[395230809,1764556255936,-151.0,0.00016997,2]
[395230810,1764556255947,-248.923275,0.00016997,2]
[395230811,1764556255956,-151.0,0.00016997,2]
[395230812,1764556255965,-248.923275,0.00016997,2]
[395230813,1764556255974,-151.0,0.00016997,2]
[395230814,1764556255983,-248.923275,0.00016997,2]
[395230815,1764556255992,-248.923275,0.00016997,2]
[395230816,1764556256003,-1795.5519567,0.00016997,2]
[395230817,1764556256016,-151.0,0.00016997,2]
[395230818,1764556256026,-151.0,0.00016997,2]
[395230819,1764556256035,-151.0,0.00016997,2]
[395230820,1764556256044,-180.616917,0.00016997,2]
[395230821,1764556256053,-180.616917,0.00016997,2]
[395230822,1764556256063,-180.616917,0.00016997,2]
[395230823,1764556256073,-180.616917,0.00016997,2]
[395230824,1764556256082,-151.0,0.00016997,2]
[395230825,1764556256091,-151.0,0.00016997,2]
[395230826,1764556256100,-500.0,0.00016998,2]
[395230827,1764556256110,-500.0,0.00016998,2]
[395230828,1764556256120,-500.0,0.00016998,2]
[395230829,1764556256134,-530.10808563,0.00016998,2]
[395230830,1764556256144,-500.0,0.00016998,2]
[395230831,1764556256153,-500.0,0.00016998,2]
[395230832,1764556256164,-500.0,0.00016998,2]
[395230833,1764556256173,-500.0,0.00016998,2]
[395230834,1764556256182,-524.15106489,0.00016998,2]
[395230835,1764556256194,-500.0,0.00016998,2]
[395230836,1764556256204,-2000.0,0.00016999,2]
[395230837,1764556256215,-200.0,0.00016999,2]
[395230838,1764556256225,-500.0,0.00016999,2]
[395230839,1764556256234,-500.0,0.00016999,2]
[395230840,1764556256243,-510.9486006,0.00016999,2]
[395230841,1764556256252,-500.0,0.00016999,2]
[395230842,1764556256262,-500.0,0.00016999,2]
[395230843,1764556256271,-509.8652975,0.00016999,2]
[395230844,1764556256280,-500.0,0.00016999,2]
[395230845,1764556256289,-500.0,0.00016999,2]
[395230846,1764556256299,-507.32385656,0.00016999,2]
[395230847,1764556256309,-300.0,0.00016999,2]
[395230848,1764556256318,-151.553399,0.00016999,2]
[395230849,1764556256328,-157.429867,0.00016999,2]
[395230850,1764556256337,-152.370624,0.00016999,2]
[395230851,1764556256348,-151.0,0.00016999,2]
[395230852,1764556256357,-168.391392,0.00016999,2]
[395230853,1764556256367,-151.436372,0.00016999,2]
[395230854,1764556256376,-1250.0,0.00016999,2]
[395230855,1764556256385,-1250.0,0.00016999,2]
[395230856,1764556256395,-1250.0,0.00016999,2]
[395230857,1764556256404,-1250.0,0.00016999,2]
[395230858,1764556256413,-307.29501972,0.00016999,2]
[395230859,1764556256423,-500.0,0.00016999,2]
[395230860,1764556256432,-500.0,0.00016999,2]
[395230861,1764556256442,-500.0,0.00016999,2]
[395230862,1764556256455,-500.0,0.00016999,2]
[395230863,1764556256465,-500.0,0.00016999,2]
[395230864,1764556256474,-500.0,0.00016999,2]
[395230865,1764556256484,-500.0,0.00016999,2]
[395230866,1764556256494,-500.0,0.00016999,2]
[395230867,1764556256503,-540.26417137,0.00016999,2]
[395230868,1764556256512,-500.0,0.00016999,2]
[395230869,1764556256522,-500.0,0.00016999,2]
[395230870,1764556256531,-500.0,0.00016999,2]
[395230871,1764556256541,-500.0,0.00016999,2]
[395230872,1764556256551,-508.34597355,0.00016999,2]
[395230873,1764556256561,-500.0,0.00016999,2]
[395230874,1764556256570,-500.0,0.00016999,2]
[395230875,1764556256579,-500.0,0.00016999,2]
[395230876,1764556256589,-500.0,0.00016999,2]
[395230877,1764556256598,-500.0,0.00016999,2]
[395230878,1764556256608,-500.0,0.00016999,2]
[395230879,1764556256618,-375.39887715,0.00016999,2]
[395230880,1764556256627,-500.0,0.00016999,2]
[395230881,1764556256636,-500.0,0.00016999,2]
[395230882,1764556256645,-500.0,0.00016999,2]
[395230883,1764556256655,-500.0,0.00016999,2]
[395230884,1764556256664,-500.0,0.00016999,2]
[395230885,1764556256673,-500.0,0.00016999,2]
[395230886,1764556256682,-151.0,0.00016999,2]
[395230887,1764556256692,-151.0,0.00016999,2]
[395230888,1764556256701,-151.0,0.00016999,2]
[395230889,1764556256711,-831.0,0.00016999,2]
[395230890,1764556256720,-1250.0,0.00016999,2]
[395230891,1764556256730,-153.0,0.00016999,2]
[395230892,1764556256740,-226.251306,0.00016999,2]
[395230893,1764556256749,-151.0,0.00016999,2]
[395230894,1764556256758,-156.634583,0.00016999,2]
[395230895,1764556256768,-189.992399,0.00016999,2]
[395230896,1764556256777,-155.958683,0.00016999,2]
[395230897,1764556256787,-151.0,0.00016999,2]
[395230898,1764556256796,-151.0,0.00016999,2]
[395230899,1764556256804,-151.0,0.00016999,2]
[395230900,1764556256817,-151.0,0.00016999,2]
[395230901,1764556256826,-153.066906,0.00016999,2]
[395230902,1764556256835,-590.8352,0.00016999,2]
[395230903,1764556256845,-590.8352,0.00016999,2]
[395230904,1764556256854,-590.8352,0.00016999,2]
[395230905,1764556256864,-590.8352,0.00016999,2]
[395230906,1764556256873,-575.853149,0.00016999,2]
[395230907,1764556256883,-575.853149,0.00016999,2]
[395230908,1764556256893,-575.853149,0.00016999,2]
[395230909,1764556256903,-151.0,0.00016999,2]
[395230910,1764556256912,-575.853149,0.00016999,2]
[395230911,1764556256922,-151.0,0.00016999,2]
[395230912,1764556256931,-156.036369,0.00016999,2]
[395230913,1764556256940,-151.0,0.00016999,2]
[395230914,1764556256949,-156.036369,0.00016999,2]
[395230915,1764556256959,-156.036369,0.00016999,2]
[395230916,1764556256968,-156.036369,0.00016999,2]
[395230917,1764556256977,-5139.85628,0.00016999,2]
[395230918,1764556256987,-500.0,0.00016999,2]
[395230919,1764556256996,-500.0,0.00016999,2]
[395230920,1764556257006,-300.0,0.00016999,2]
[395230921,1764556257015,-151.0,0.00016999,2]
[395230922,1764556257024,-151.0,0.00016999,2]
[395230923,1764556257034,-151.0,0.00016999,2]
[395230924,1764556257043,-151.0,0.00016999,2]
[395230925,1764556257053,-151.0,0.00016999,2]
[395230926,1764556257065,-151.0,0.00016999,2]
[395230927,1764556257074,-151.0,0.00016999,2]
[395230928,1764556257083,-151.0,0.00016999,2]
[395230929,1764556257093,-151.0,0.00016999,2]
[395230930,1764556257102,-151.0,0.00016999,2]
[395230931,1764556257112,-151.0,0.00016999,2]
[395230932,1764556257122,-151.0,0.00016999,2]
[395230933,1764556257134,-151.0,0.00016999,2]
[395230934,1764556257143,-387.628526,0.00016999,2]
[395230935,1764556257153,-174.788129,0.00016999,2]
[395230936,1764556257163,-387.628526,0.00016999,2]
[395230937,1764556257172,-387.628526,0.00016999,2]
[395230938,1764556257182,-387.628526,0.00016999,2]
[395230939,1764556257192,-151.0,0.00016999,2]
[395230940,1764556257201,-151.0,0.00016999,2]
[395230941,1764556257212,-151.0,0.00016999,2]
[395230942,1764556257222,-831.0,0.00016999,2]
[395230943,1764556257232,-831.0,0.00016999,2]
[395230944,1764556257241,-831.0,0.00016999,2]
[395230945,1764556257250,-187.543508,0.00016999,2]
[395230946,1764556257260,-254.469934,0.00016999,2]
[395230947,1764556257269,-254.469934,0.00016999,2]
[395230948,1764556257279,-151.0,0.00016999,2]
[395230949,1764556257288,-254.469934,0.00016999,2]
[395230950,1764556257297,-254.469934,0.00016999,2]
[395230951,1764556257307,-153.0,0.00016999,2]
[395230952,1764556257317,-153.0,0.00016999,2]
[395230953,1764556257326,-1250.0,0.00016999,2]
[395230954,1764556257337,-223.0,0.00016999,2]
[395230955,1764556257346,-250.0,0.00016999,2]
[395230956,1764556257357,-152.0,0.00017,2]
[395230957,1764556257366,-152.0,0.00017,2]
[395230958,1764556257376,-152.0,0.00017,2]
[395230959,1764556257385,-640.0,0.00017,2]
[395230960,1764556257394,-1258.0,0.00017,2]
[395230961,1764556257404,-1217.12,0.00017,2]
[395230962,1764556257415,-920.629,0.00017,2]
[395230963,1764556257426,-1322.0,0.00017,2]
[395230964,1764556257435,-1603.0,0.00017,2]
[395230965,1764556257446,-610.0,0.00017,2]
[395230966,1764556257457,-2627806.25600889,0.00017,2]
[395230967,1764556258675,-687.65999922,0.00013451,2]
[395230968,1764556258704,-406.34000078,0.00013451,2]
[395230969,1764556258716,-500.0,0.00013698,2]
[395230970,1764556258727,-500.0,0.00013698,2]
[395230971,1764556258738,-500.0,0.00013698,2]
[395230972,1764556258749,-1250.0,0.00016999,2]
[395230973,1764556258760,-5581.4235075,0.00017,2]
[395230974,1764556258774,-1756.0,0.00017,2]
[395230975,1764556258786,-890.76432995,0.00017,2]
[395230976,1764556258799,-462.1171341,0.00017,2]
[395230977,1764556258812,-6450.40605885,0.00017,2]
[395230978,1764556258831,-1000.0,0.00017,2]
[395230979,1764556259138,-141.66126224,0.00013478,2]
[395230980,1764556259152,-117.33873776,0.00013478,2]
[395230981,1764556259164,-188.90026268,0.00013738,2]
[395230982,1764556259917,-500.0,0.00013698,2]
[395230983,1764556259927,-500.0,0.00013698,2]
[395230984,1764556259937,-500.0,0.00013698,2]
[395230985,1764556259948,-500.0,0.00013698,2]
[395230986,1764556259958,-77.09973732,0.00013738,2]
[395230987,1764556259969,-494.0,0.00013766,2]
[395230988,1764556259979,-308.36820434,0.00013793,2]
[395230989,1764556259990,-500.0,0.00014373,2]
[395230990,1764556260000,-501.18603074,0.00014921,2]
[395230991,1764556260011,-1147.20803118,0.000159,2]
[395230992,1764556260021,-500.0,0.00016973,2]
[395230993,1764556260032,-467.28363596,0.00016973,2]
[395230994,1764556260042,-2718.0,0.00017,2]
[395230995,1764556260052,-244755.59561206,0.00017,2]
[395230996,1764556260069,-65388.86657512,0.00017,2]
[395230997,1764556260082,-796.94870825,0.00017,2]
[395230998,1764556260094,-3023.57886795,0.00017,2]
[395230999,1764556260111,-318.00863237,0.00017,2]
[395231000,1764556260142,-500.0,0.00014631,2]
[395231001,1764556260153,-38497.08098367,0.00017,2]
[395231006,1764556874681,1585.5863403,8.219e-05,2]
[395231010,1764557178959,1643.96,0.0001,2]
[395231015,1764557362161,-5284.966344,0.0001204,2]
[395231020,1764557432178,-1200.0,0.00012039,2]
[395231021,1764557432188,-300.0,0.00012039,2]
[395231022,1764557432197,-310.90802098,0.00012039,2]
[395231023,1764557432207,-500.0,0.00012039,2]
[395231024,1764557432217,-310.02082655,0.00012039,2]
[395231025,1764557432226,-545.80685671,0.00012039,2]
[395231026,1764557432235,-500.0,0.00012039,2]
[395231027,1764557432244,-5031.26429577,0.0001204,2]
[395231028,1764557432256,-880.47850671,0.0001204,2]
[395231029,1764557432270,-815.82400348,0.0001204,2]
[395231030,1764557432282,-466.139668,0.0001204,2]
[395231031,1764557432293,-844.47,0.0001204,2]
[395231032,1764557432312,-383.78397968,0.0001204,2]
[395231033,1764557432324,-1159.60827873,0.0001204,2]
[395231034,1764557432336,-1815.05849312,0.0001204,2]
[395231035,1764557432348,-5416.00108577,0.0001204,2]
[395231036,1764557432360,-462.1300956,0.0001204,2]
[395231037,1764557432396,-1075.43,0.0001204,2]
[395231038,1764557432410,-587.69272854,0.0001204,2]
[395231039,1764557432422,-271.414428,0.0001204,2]